fUSD/lending_fUSD_20260606
["ID","MTS","AMOUNT","RATE_DAILY","PERIOD"]
[424231987,1780675873000,-532.737278,0.00038,30]
[424231988,1780675873000,-318.383922,0.00038,15]
[424231999,1780675873000,-520.534854,0.00038,30]
[424231998,1780675873000,-151.0,0.00038,30]
[424231996,1780675873000,-151.0,0.00038,30]
[424232001,1780675873000,-151.0,0.00038,30]
[424231997,1780675873000,-532.737278,0.00038,30]
[424231989,1780675873000,-356.613747,0.00038,30]
[424231990,1780675873000,-6555.038865,0.00038,30]
[424231991,1780675873000,-151.0,0.00038,30]
[424232000,1780675873000,-6555.038865,0.00038,30]
[424231993,1780675873000,-532.737278,0.00038,30]
[424232023,1780675873000,-3124.064276,0.00038,30]
[424231992,1780675873000,-151.0,0.00038,30]
[424232002,1780675873000,-520.534854,0.00038,30]
[424232003,1780675873000,-6555.038865,0.00038,30]
[424232004,1780675873000,-520.534854,0.00038,30]
[424232012,1780675873000,-732.063316,0.00038,30]
[424232014,1780675873000,-732.063316,0.00038,30]
[424232013,1780675873000,-732.063316,0.00038,30]
[424232006,1780675873000,-151.0,0.00038,60]
[424232010,1780675873000,-457.71823421,0.00038,2]
[424232011,1780675873000,-457.71823421,0.00038,2]
[424232005,1780675873000,-520.534854,0.00038,30]
[424232007,1780675873000,-151.0,0.00038,30]
[424232009,1780675873000,-151.0,0.00038,30]
[424232008,1780675873000,-151.0,0.00038,30]
[424231995,1780675873000,-6555.038865,0.00038,30]
[424232051,1780675873000,-3962.057198,0.00038,30]
[424232046,1780675873000,-151.0,0.00038,30]
[424232049,1780675873000,-196.858265,0.00038,30]
[424232080,1780675873000,-482.08,0.00038001,2]
[424232084,1780675873000,-575.19,0.00038001,2]
[424232082,1780675873000,-151.0,0.00038001,2]
[424232083,1780675873000,-545.98,0.00038001,2]
[424232086,1780675873000,-643.86,0.00038001,2]
[424232081,1780675873000,-482.08,0.00038001,2]
[424232085,1780675873000,-482.15,0.00038001,2]
[424232090,1780675873000,-482.08,0.00038001,2]
[424232100,1780675873000,-482.08,0.00038001,2]
[424232101,1780675873000,-643.95,0.00038001,2]
[424232102,1780675873000,-573.03,0.00038001,2]
[424232099,1780675873000,-643.86,0.00038001,2]
[424232091,1780675873000,-151.0,0.00038001,2]
[424232079,1780675873000,-573.04,0.00038001,2]
[424232096,1780675873000,-185.01,0.00038001,2]
[424232092,1780675873000,-396.01,0.00038001,2]
[424232098,1780675873000,-482.08,0.00038001,2]
[424232094,1780675873000,-482.08,0.00038001,2]
[424232093,1780675873000,-572.95,0.00038001,2]
[424232103,1780675873000,-400.16,0.00038001,2]
[424232105,1780675873000,-482.08,0.00038001,2]
[424232109,1780675873000,-408.14,0.00038005,2]
[424232110,1780675873000,-643.86,0.00038005,2]
[424232104,1780675873000,-643.86,0.00038001,2]
[424232107,1780675873000,-482.15,0.00038005,2]
[424232106,1780675873000,-5000.0,0.00038002,2]
[424232108,1780675873000,-185.01,0.00038005,2]
[424232042,1780675873000,-3962.057198,0.00038,30]
[424232095,1780675873000,-396.01,0.00038001,2]
[424232087,1780675873000,-572.95,0.00038001,2]
[424232097,1780675873000,-185.01,0.00038001,2]
[424232077,1780675873000,-185.01,0.00038001,2]
[424232089,1780675873000,-643.95,0.00038001,2]
[424232043,1780675873000,-500.0,0.00038,30]
[424232054,1780675873000,-3962.057198,0.00038,30]
[424232058,1780675873000,-572.95,0.00038001,2]
[424232057,1780675873000,-482.08,0.00038001,2]
[424232059,1780675873000,-643.86,0.00038001,2]
[424232055,1780675873000,-151.0,0.00038,30]
[424232053,1780675873000,-196.858265,0.00038,30]
[424232056,1780675873000,-3962.057198,0.00038,30]
[424232060,1780675873000,-396.01,0.00038001,2]
[424232061,1780675873000,-643.86,0.00038001,2]
[424232063,1780675873000,-572.95,0.00038001,2]
[424232062,1780675873000,-643.86,0.00038001,2]
[424232064,1780675873000,-572.95,0.00038001,2]
[424232044,1780675873000,-196.858265,0.00038,30]
[424232069,1780675873000,-572.95,0.00038001,2]
[424232068,1780675873000,-396.01,0.00038001,2]
[424232078,1780675873000,-185.01,0.00038001,2]
[424232072,1780675873000,-575.19,0.00038001,2]
[424232074,1780675873000,-482.08,0.00038001,2]
[424232071,1780675873000,-396.01,0.00038001,2]
[424232075,1780675873000,-643.86,0.00038001,2]
[424232088,1780675873000,-185.01,0.00038001,2]
[424232073,1780675873000,-396.01,0.00038001,2]
[424232067,1780675873000,-575.19,0.00038001,2]
[424232076,1780675873000,-482.08,0.00038001,2]
[424232070,1780675873000,-482.08,0.00038001,2]
[424232065,1780675873000,-572.95,0.00038001,2]
[424232066,1780675873000,-185.01,0.00038001,2]
[424232148,1780675874000,-150.0,0.0003804,120]
[424232150,1780675874000,-5000.0,0.00038062,2]
[424232149,1780675874000,-150.0,0.0003805,120]
[424232143,1780675874000,-150.0,0.00038034,120]
[424232151,1780675874000,-150.0,0.00038066,120]
[424232144,1780675874000,-150.0,0.00038036,30]
[424232147,1780675874000,-1774.12734203,0.00038036,30]
[424232156,1780675874000,-150.0,0.00038083,120]
[424232155,1780675874000,-20000.0,0.00038082,120]
[424232145,1780675874000,-3091.59014074,0.00038036,30]
[424232154,1780675874000,-150.0,0.00038081,120]
[424232146,1780675874000,-150.0,0.00038036,30]
[424232153,1780675874000,-152.0,0.00038077,30]
[424232169,1780675874000,-150.0,0.00038121,120]
[424232159,1780675874000,-150.0,0.00038092,120]
[424232157,1780675874000,-177.94557611,0.00038088,14]
[424232160,1780675874000,-5000.0,0.00038092,2]
[424232161,1780675874000,-150.0,0.00038099,120]
[424232158,1780675874000,-164.89,0.0003809,93]
[424232163,1780675874000,-253.22717104,0.000381,33]
[424232162,1780675874000,-558.71569836,0.000381,33]
[424232166,1780675874000,-637.3216458,0.00038105,30]
[424232168,1780675874000,-150.0,0.00038116,120]
[424232167,1780675874000,-5000.0,0.00038108,2]
[424232165,1780675874000,-152.0,0.00038102,7]
[424232164,1780675874000,-150.0,0.00038101,120]
[424232140,1780675874000,-5000.0,0.00038027,2]
[424232152,1780675874000,-150.0,0.00038067,120]
[424232142,1780675874000,-150.0,0.00038033,120]
[424232112,1780675874000,-396.01,0.00038013,2]
[424232139,1780675874000,-150.0,0.00038026,2]
[424232111,1780675874000,-572.95,0.00038013,2]
[424232116,1780675874000,-482.08,0.00038013,2]
[424232115,1780675874000,-396.01,0.00038013,2]
[424232114,1780675874000,-482.15,0.00038013,2]
[424232117,1780675874000,-381.34,0.00038013,2]
[424232124,1780675874000,-482.08,0.00038013,2]
[424232171,1780675874000,-848.8,0.00038125,30]
[424232125,1780675874000,-643.95,0.00038013,2]
[424232129,1780675874000,-482.08,0.00038013,2]
[424232127,1780675874000,-643.86,0.00038013,2]
[424232126,1780675874000,-572.87,0.00038013,2]
[424232128,1780675874000,-396.02,0.00038013,2]
[424232121,1780675874000,-482.09,0.00038013,2]
[424232131,1780675874000,-396.01,0.00038013,2]
[424232123,1780675874000,-396.01,0.00038013,2]
[424232120,1780675874000,-151.0,0.00038013,2]
[424232118,1780675874000,-151.0,0.00038013,2]
[424232122,1780675874000,-395.99,0.00038013,2]
[424232130,1780675874000,-575.0,0.00038013,2]
[424232132,1780675874000,-482.08,0.00038013,2]
[424232133,1780675874000,-643.86,0.00038013,2]
[424232138,1780675874000,-152.0,0.00038026,7]
[424232113,1780675874000,-575.19,0.00038013,2]
[424232136,1780675874000,-150.0,0.00038017,120]
[424232141,1780675874000,-5000.0,0.00038032,2]
[424232134,1780675874000,-482.08,0.00038013,2]
[424232135,1780675874000,-396.01,0.00038013,2]
[424232137,1780675874000,-5000.0,0.00038025,2]
[424232119,1780675874000,-395.99,0.00038013,2]
[424232181,1780675874000,-5000.0,0.00038174,2]
[424232217,1780675874000,-192.708,0.0003825,20]
[424232173,1780675874000,-150.0,0.00038134,120]
[424232207,1780675874000,-637.3216458,0.00038211,30]
[424232216,1780675874000,-150.0,0.00038248,120]
[424232214,1780675874000,-5000.0,0.00038241,2]
[424232213,1780675874000,-150.0,0.00038235,120]
[424232215,1780675874000,-150.0,0.00038242,120]
[424232206,1780675874000,-150.0,0.00038201,120]
[424232218,1780675874000,-300.0,0.00038259,50]
[424232208,1780675874000,-5000.0,0.00038211,2]
[424232209,1780675874000,-158.09479865,0.00038213,2]
[424232212,1780675874000,-150.0,0.00038231,120]
[424232210,1780675874000,-150.0,0.00038215,120]
[424232211,1780675874000,-159.20318347,0.00038219,30]
[424232219,1780675874000,-150.0,0.00038264,120]
[424232205,1780675874000,-150.0,0.00038201,120]
[424232222,1780675874000,-5000.0,0.00038271,2]
[424232220,1780675874000,-152.0,0.00038265,30]
[424232231,1780675874000,-2906.97206108,0.00038288,2]
[424232227,1780675874000,-150.0,0.00038282,120]
[424232223,1780675874000,-5000.0,0.00038271,2]
[424232225,1780675874000,-150.0,0.00038278,120]
[424232226,1780675874000,-150.0,0.00038281,120]
[424232229,1780675874000,-12872.4,0.00038285,9]
[424232228,1780675874000,-2381.5,0.00038285,9]
[424232230,1780675874000,-2236.72300575,0.00038288,2]
[424232233,1780675874000,-1629.18612993,0.00038288,2]
[424232232,1780675874000,-3363.12234036,0.00038288,2]
[424232234,1780675874000,-1709.03728415,0.00038288,2]
[424232170,1780675874000,-5000.0,0.00038122,2]
[424232221,1780675874000,-150.0,0.00038269,120]
[424232204,1780675874000,-2000.0,0.000382,60]
[424232224,1780675874000,-150.0,0.00038275,120]
[424232201,1780675874000,-1495.23162457,0.000382,30]
[424232203,1780675874000,-500.0,0.000382,2]
[424232172,1780675874000,-150.0,0.00038132,120]
[424232178,1780675874000,-150.0,0.00038168,120]
[424232180,1780675874000,-5000.0,0.00038174,2]
[424232177,1780675874000,-150.0,0.00038165,120]
[424232174,1780675874000,-150.0,0.00038149,120]
[424232176,1780675874000,-150.0,0.00038161,120]
[424232175,1780675874000,-5000.0,0.00038152,2]
[424232184,1780675874000,-250.0,0.00038174,2]
[424232182,1780675874000,-5000.0,0.00038174,2]
[424232187,1780675874000,-150.0,0.00038182,120]
[424232186,1780675874000,-217.35397893,0.00038179,7]
[424232185,1780675874000,-250.0,0.00038174,2]
[424232183,1780675874000,-250.0,0.00038174,2]
[424232179,1780675874000,-150.0,0.00038168,120]
[424232189,1780675874000,-5000.0,0.00038182,2]
[424232188,1780675874000,-637.32164579,0.00038182,30]
[424232199,1780675874000,-1495.23162457,0.000382,30]
[424232196,1780675874000,-1495.23162457,0.000382,30]
[424232197,1780675874000,-1495.23162457,0.000382,30]
[424232195,1780675874000,-1495.23162457,0.000382,30]
[424232198,1780675874000,-1495.23162457,0.000382,30]
[424232202,1780675874000,-1495.23162457,0.000382,30]
[424232194,1780675874000,-1495.23162457,0.000382,30]
[424232193,1780675874000,-150.0,0.00038198,120]
[424232192,1780675874000,-5000.0,0.0003819,2]
[424232191,1780675874000,-256.14049249,0.00038184,2]
[424232190,1780675874000,-150.0,0.00038183,120]
[424232200,1780675874000,-1495.23162457,0.000382,30]
[424232275,1780675875000,-1434.39,0.00038368,120]
[424232272,1780675875000,-150.0,0.00038363,120]
[424232270,1780675875000,-5000.0,0.00038361,2]
[424232278,1780675875000,-150.0,0.0003838,120]
[424232274,1780675875000,-150.0,0.00038366,120]
[424232273,1780675875000,-637.32164579,0.00038364,30]
[424232280,1780675875000,-289.60150852,0.00038387,7]
[424232281,1780675875000,-5800.0,0.00038388,2]
[424232279,1780675875000,-280.0,0.0003838,120]
[424232269,1780675875000,-924.72,0.00038356,120]
[424232261,1780675875000,-204.0,0.00038356,120]
[424232276,1780675875000,-950.58,0.00038368,120]
[424232271,1780675875000,-150.0,0.00038363,120]
[424232277,1780675875000,-150.0,0.00038369,120]
[424232298,1780675875000,-345.083144,0.000384,7]
[424232282,1780675875000,-5800.0,0.00038393,2]
[424232292,1780675875000,-429.083147,0.000384,7]
[424232293,1780675875000,-342.083144,0.000384,7]
[424232294,1780675875000,-339.083144,0.000384,7]
[424232285,1780675875000,-151.0,0.00038397,14]
[424232287,1780675875000,-500.0,0.000384,120]
[424232284,1780675875000,-150.0,0.00038396,120]
[424232283,1780675875000,-5800.0,0.00038396,2]
[424232289,1780675875000,-500.0,0.000384,120]
[424232286,1780675875000,-5800.0,0.00038399,2]
[424232288,1780675875000,-500.0,0.000384,120]
[424232295,1780675875000,-345.083144,0.000384,7]
[424232297,1780675875000,-339.083144,0.000384,7]
[424232262,1780675875000,-1926.59,0.00038356,14]
[424232291,1780675875000,-366.32,0.000384,120]
[424232259,1780675875000,-543.23,0.00038356,7]
[424232253,1780675875000,-150.0,0.00038347,120]
[424232260,1780675875000,-5295.0,0.00038356,120]
[424232236,1780675875000,-2660.89778975,0.00038288,2]
[424232235,1780675875000,-1422.27814747,0.00038288,2]
[424232237,1780675875000,-150.0,0.00038297,120]
[424232238,1780675875000,-973.59,0.000383,120]
[424232239,1780675875000,-5000.0,0.00038301,2]
[424232242,1780675875000,-150.0,0.00038303,120]
[424232240,1780675875000,-150.0,0.00038302,120]
[424232241,1780675875000,-150.0,0.00038303,120]
[424232243,1780675875000,-3305.3365191,0.00038307,30]
[424232245,1780675875000,-637.32164579,0.00038316,30]
[424232246,1780675875000,-150.0,0.00038322,120]
[424232244,1780675875000,-150.0,0.00038314,120]
[424232252,1780675875000,-150.0,0.00038336,120]
[424232248,1780675875000,-150.0,0.0003833,120]
[424232255,1780675875000,-1694.61,0.00038356,2]
[424232249,1780675875000,-5000.0,0.00038331,2]
[424232299,1780675875000,-342.083144,0.000384,7]
[424232247,1780675875000,-177.19523279,0.00038329,120]
[424232254,1780675875000,-5000.0,0.00038353,2]
[424232250,1780675875000,-5000.0,0.00038334,2]
[424232251,1780675875000,-150.0,0.00038336,120]
[424232264,1780675875000,-915.62,0.00038356,30]
[424232266,1780675875000,-24236.57,0.00038356,14]
[424232263,1780675875000,-928.74,0.00038356,30]
[424232268,1780675875000,-1236.58,0.00038356,30]
[424232256,1780675875000,-464.60999999,0.00038356,30]
[424232265,1780675875000,-727.57,0.00038356,30]
[424232267,1780675875000,-2171.23,0.00038356,30]
[424232257,1780675875000,-20000.0,0.00038356,120]
[424232258,1780675875000,-1500.0,0.00038356,120]
[424232300,1780675875000,-339.083144,0.000384,7]
[424232290,1780675875000,-500.0,0.000384,120]
[424232302,1780675875000,-342.083144,0.000384,7]
[424232335,1780675875000,-229.23687,0.000384,30]
[424232336,1780675875000,-492.495578,0.000384,30]
[424232337,1780675875000,-492.495578,0.000384,30]
[424232338,1780675875000,-492.495578,0.000384,30]
[424232345,1780675875000,-1418.537841,0.000384,30]
[424232339,1780675875000,-492.495578,0.000384,30]
[424232346,1780675875000,-1418.537841,0.000384,30]
[424232344,1780675875000,-1418.537841,0.000384,30]
[424232347,1780675875000,-609.510835,0.000384,30]
[424232348,1780675875000,-609.510835,0.000384,30]
[424232340,1780675875000,-151.0,0.000384,30]
[424232342,1780675875000,-151.0,0.000384,30]
[424232341,1780675875000,-151.0,0.000384,30]
[424232343,1780675875000,-1418.537841,0.000384,30]
[424232333,1780675875000,-229.23687,0.000384,30]
[424232349,1780675875000,-151.0,0.000384,30]
[424232352,1780675875000,-151.0,0.000384,30]
[424232353,1780675875000,-151.0,0.000384,30]
[424232350,1780675875000,-609.510835,0.000384,30]
[424232356,1780675875000,-151.0,0.000384,30]
[424232355,1780675875000,-151.0,0.000384,30]
[424232301,1780675875000,-345.083144,0.000384,7]
[424232357,1780675875000,-151.0,0.000384,30]
[424232354,1780675875000,-151.0,0.000384,30]
[424232360,1780675875000,-151.0,0.000384,30]
[424232361,1780675875000,-151.0,0.000384,30]
[424232359,1780675875000,-158.00728757,0.000384,2]
[424232363,1780675875000,-1029.903027,0.000384,30]
[424232364,1780675875000,-1029.903027,0.000384,30]
[424232362,1780675875000,-151.0,0.000384,30]
[424232351,1780675875000,-609.510835,0.000384,30]
[424232334,1780675875000,-229.23687,0.000384,30]
[424232358,1780675875000,-286.863768,0.000384,30]
[424232331,1780675875000,-151.0,0.000384,30]
[424232304,1780675875000,-345.083144,0.000384,7]
[424232330,1780675875000,-151.0,0.000384,30]
[424232307,1780675875000,-345.083144,0.000384,7]
[424232305,1780675875000,-342.083144,0.000384,7]
[424232296,1780675875000,-342.083144,0.000384,7]
[424232306,1780675875000,-339.083144,0.000384,7]
[424232309,1780675875000,-339.083144,0.000384,7]
[424232319,1780675875000,-345.083144,0.000384,7]
[424232320,1780675875000,-342.083144,0.000384,7]
[424232310,1780675875000,-345.083144,0.000384,7]
[424232308,1780675875000,-342.083144,0.000384,7]
[424232311,1780675875000,-342.083144,0.000384,7]
[424232312,1780675875000,-339.083144,0.000384,7]
[424232314,1780675875000,-342.083144,0.000384,7]
[424232303,1780675875000,-339.083144,0.000384,7]
[424232317,1780675875000,-342.083144,0.000384,7]
[424232313,1780675875000,-345.083144,0.000384,7]
[424232326,1780675875000,-157.848844,0.000384,30]
[424232327,1780675875000,-151.0,0.000384,30]
[424232328,1780675875000,-151.0,0.000384,30]
[424232329,1780675875000,-151.0,0.000384,30]
[424232322,1780675875000,-2000000.0,0.000384,120]
[424232325,1780675875000,-151.0,0.000384,30]
[424232332,1780675875000,-229.23687,0.000384,30]
[424232324,1780675875000,-319.97,0.000384,120]
[424232321,1780675875000,-2000.0,0.000384,60]
[424232318,1780675875000,-339.083144,0.000384,7]
[424232315,1780675875000,-339.083144,0.000384,7]
[424232316,1780675875000,-345.083144,0.000384,7]
[424232323,1780675875000,-258.29,0.000384,120]
[424232397,1780675876000,-151.0,0.000384,30]
[424232393,1780675876000,-151.0,0.000384,30]
[424232392,1780675876000,-180.808887,0.000384,30]
[424232400,1780675876000,-219.903157,0.000384,30]
[424232391,1780675876000,-221.22442,0.000384,30]
[424232394,1780675876000,-221.22442,0.000384,30]
[424232402,1780675876000,-1201.957885,0.000384,30]
[424232395,1780675876000,-151.0,0.000384,30]
[424232396,1780675876000,-151.0,0.000384,30]
[424232373,1780675876000,-697.306586,0.000384,30]
[424232411,1780675876000,-1671.487302,0.000384,30]
[424232404,1780675876000,-1201.957885,0.000384,30]
[424232406,1780675876000,-1671.487302,0.000384,30]
[424232407,1780675876000,-1201.957885,0.000384,30]
[424232408,1780675876000,-151.0,0.000384,30]
[424232405,1780675876000,-151.0,0.000384,30]
[424232403,1780675876000,-1201.957885,0.000384,30]
[424232412,1780675876000,-151.0,0.000384,30]
[424232413,1780675876000,-262.972486,0.000384,30]
[424232399,1780675876000,-151.0,0.000384,30]
[424232414,1780675876000,-1671.487302,0.000384,30]
[424232410,1780675876000,-151.0,0.000384,30]
[424232398,1780675876000,-151.0,0.000384,30]
[424232372,1780675876000,-151.0,0.000384,30]
[424232390,1780675876000,-735.018238,0.000384,30]
[424232409,1780675876000,-1671.487302,0.000384,30]
[424232374,1780675876000,-697.306586,0.000384,30]
[424232375,1780675876000,-697.306586,0.000384,30]
[424232369,1780675876000,-1200.784688,0.000384,28]
[424232370,1780675876000,-1200.784688,0.000384,28]
[424232368,1780675876000,-1200.784688,0.000384,28]
[424232366,1780675876000,-1029.903027,0.000384,30]
[424232365,1780675876000,-153.088833,0.000384,30]
[424232367,1780675876000,-1029.903027,0.000384,30]
[424232371,1780675876000,-1200.784688,0.000384,28]
[424232389,1780675876000,-498.256926,0.000384,30]
[424232376,1780675876000,-697.306586,0.000384,30]
[424232385,1780675876000,-498.256926,0.000384,30]
[424232387,1780675876000,-221.22442,0.000384,30]
[424232379,1780675876000,-151.0,0.000384,30]
[424232380,1780675876000,-735.018238,0.000384,30]
[424232378,1780675876000,-498.256926,0.000384,30]
[424232377,1780675876000,-735.018238,0.000384,30]
[424232381,1780675876000,-498.256926,0.000384,30]
[424232388,1780675876000,-151.0,0.000384,30]
[424232383,1780675876000,-151.0,0.000384,30]
[424232382,1780675876000,-151.0,0.000384,30]
[424232384,1780675876000,-221.22442,0.000384,30]
[424232415,1780675876000,-151.0,0.000384,30]
[424232386,1780675876000,-735.018238,0.000384,30]
[424232418,1780675876000,-151.0,0.000384,30]
[424232448,1780675876000,-493.647632,0.000384,30]
[424232443,1780675876000,-196.001559,0.000384,30]
[424232444,1780675876000,-578.554596,0.000384,30]
[424232449,1780675876000,-836.780007,0.000384,30]
[424232446,1780675876000,-578.554596,0.000384,30]
[424232451,1780675876000,-836.780007,0.000384,30]
[424232445,1780675876000,-998.07725,0.000384,30]
[424232453,1780675876000,-493.647632,0.000384,30]
[424232461,1780675876000,-446.137623,0.000384,30]
[424232457,1780675876000,-446.137623,0.000384,30]
[424232450,1780675876000,-493.647632,0.000384,30]
[424232463,1780675876000,-867.478458,0.000384,30]
[424232455,1780675876000,-493.647632,0.000384,30]
[424232462,1780675876000,-166.396231,0.000384,30]
[424232456,1780675876000,-836.780007,0.000384,30]
[424232452,1780675876000,-151.0,0.000384,30]
[424232458,1780675876000,-446.137623,0.000384,30]
[424232460,1780675876000,-446.137623,0.000384,30]
[424232459,1780675876000,-151.0,0.000384,30]
[424232464,1780675876000,-166.396231,0.000384,30]
[424232465,1780675876000,-867.478458,0.000384,30]
[424232416,1780675876000,-262.972486,0.000384,30]
[424232454,1780675876000,-836.780007,0.000384,30]
[424232447,1780675876000,-578.554596,0.000384,30]
[424232401,1780675876000,-151.0,0.000384,30]
[424232439,1780675876000,-578.554596,0.000384,30]
[424232440,1780675876000,-196.001559,0.000384,30]
[424232425,1780675876000,-202.399187,0.000384,30]
[424232429,1780675876000,-320.0,0.000384,30]
[424232417,1780675876000,-151.0,0.000384,30]
[424232426,1780675876000,-202.399187,0.000384,30]
[424232427,1780675876000,-320.0,0.000384,30]
[424232428,1780675876000,-202.399187,0.000384,30]
[424232420,1780675876000,-151.0,0.000384,30]
[424232421,1780675876000,-151.0,0.000384,30]
[424232424,1780675876000,-151.0,0.000384,30]
[424232422,1780675876000,-262.972486,0.000384,30]
[424232419,1780675876000,-262.972486,0.000384,30]
[424232432,1780675876000,-151.0,0.000384,30]
[424232431,1780675876000,-196.001559,0.000384,30]
[424232430,1780675876000,-151.0,0.000384,30]
[424232433,1780675876000,-202.399187,0.000384,30]
[424232434,1780675876000,-998.07725,0.000384,30]
[424232437,1780675876000,-151.0,0.000384,30]
[424232436,1780675876000,-196.001559,0.000384,30]
[424232435,1780675876000,-320.0,0.000384,30]
[424232438,1780675876000,-998.07725,0.000384,30]
[424232441,1780675876000,-320.0,0.000384,30]
[424232423,1780675876000,-151.0,0.000384,30]
[424232442,1780675876000,-998.07725,0.000384,30]
[424232508,1780675877000,-151.0,0.000384,30]
[424232506,1780675877000,-151.0,0.000384,30]
[424232507,1780675877000,-6555.038865,0.000384,30]
[424232501,1780675877000,-356.613747,0.000384,30]
[424232497,1780675877000,-151.0,0.000384,30]
[424232500,1780675877000,-318.383922,0.000384,15]
[424232499,1780675877000,-532.737278,0.000384,30]
[424232498,1780675877000,-151.0,0.000384,30]
[424232504,1780675877000,-532.737278,0.000384,30]
[424232510,1780675877000,-520.534854,0.000384,30]
[424232509,1780675877000,-151.0,0.000384,30]
[424232518,1780675877000,-151.0,0.000384,30]
[424232502,1780675877000,-6555.038865,0.000384,30]
[424232503,1780675877000,-151.0,0.000384,30]
[424232511,1780675877000,-532.737278,0.000384,30]
[424232512,1780675877000,-6555.038865,0.000384,30]
[424232513,1780675877000,-151.0,0.000384,30]
[424232514,1780675877000,-520.534854,0.000384,30]
[424232515,1780675877000,-6555.038865,0.000384,30]
[424232516,1780675877000,-520.534854,0.000384,30]
[424232517,1780675877000,-520.534854,0.000384,30]
[424232494,1780675877000,-8350.230407,0.000384,30]
[424232520,1780675877000,-151.0,0.000384,30]
[424232519,1780675877000,-151.0,0.000384,30]
[424232505,1780675877000,-151.0,0.000384,30]
[424232495,1780675877000,-356.613747,0.000384,30]
[424232477,1780675877000,-1543.31254,0.000384,7]
[424232492,1780675877000,-1091.871311,0.000384,30]
[424232467,1780675877000,-151.0,0.000384,30]
[424232468,1780675877000,-166.396231,0.000384,30]
[424232473,1780675877000,-261.473768,0.000384,2]
[424232469,1780675877000,-261.473768,0.000384,2]
[424232476,1780675877000,-151.0,0.000384,30]
[424232472,1780675877000,-867.478458,0.000384,30]
[424232466,1780675877000,-166.396231,0.000384,30]
[424232474,1780675877000,-261.473768,0.000384,2]
[424232475,1780675877000,-151.0,0.000384,30]
[424232470,1780675877000,-867.478458,0.000384,30]
[424232471,1780675877000,-261.473768,0.000384,2]
[424232478,1780675877000,-1543.31254,0.000384,7]
[424232484,1780675877000,-8350.230407,0.000384,30]
[424232481,1780675877000,-8350.230407,0.000384,30]
[424232479,1780675877000,-1543.31254,0.000384,7]
[424232487,1780675877000,-1091.871311,0.000384,30]
[424232522,1780675877000,-732.063316,0.000384,30]
[424232482,1780675877000,-1543.31254,0.000384,7]
[424232485,1780675877000,-356.613747,0.000384,30]
[424232480,1780675877000,-1091.871311,0.000384,30]
[424232486,1780675877000,-318.383922,0.000384,15]
[424232488,1780675877000,-8350.230407,0.000384,30]
[424232490,1780675877000,-318.383922,0.000384,15]
[424232489,1780675877000,-356.613747,0.000384,30]
[424232491,1780675877000,-532.737278,0.000384,30]